fUST/lending_fUST_20240823
["ID","MTS","AMOUNT","RATE_DAILY","PERIOD"]
[335640963,1724398235422,-715.59,0.00016438,2]
[335640965,1724398235431,-500.0,0.00016438,2]
[335640968,1724398235453,-500.0,0.00016438,2]
[335640971,1724398235464,-500.0,0.00016438,2]
[335640973,1724398235475,-500.0,0.00016438,2]
[335640975,1724398235486,-500.0,0.00016438,2]
[335640977,1724398235497,-500.0,0.00016438,2]
[335640979,1724398235508,-654.15,0.00016438,2]
[335640981,1724398235519,-500.0,0.00016438,2]
[335640983,1724398235529,-500.0,0.00016438,2]
[335640986,1724398235540,-500.0,0.00016438,2]
[335640988,1724398235551,-500.0,0.00016438,2]
[335640990,1724398235561,-992.15,0.00016438,2]
[335640992,1724398235571,-501.69853805,0.00016438,2]
[335640994,1724398235581,-261.76018332,0.00016438,2]
[335640996,1724398235591,-500.0,0.00016438,2]
[335640998,1724398235601,-500.0,0.00016438,2]
[335641000,1724398235611,-500.0,0.00016438,2]
[335641002,1724398235621,-500.0,0.00016438,2]
[335641004,1724398235632,-500.0,0.00016438,2]
[335641006,1724398235642,-500.0,0.00016438,2]
[335641008,1724398235653,-500.0,0.00016438,2]
[335641010,1724398235663,-500.0,0.00016438,2]
[335641012,1724398235674,-500.0,0.00016438,2]
[335641014,1724398235684,-500.0,0.00016438,2]
[335641016,1724398235694,-500.0,0.00016438,2]
[335641018,1724398235704,-500.0,0.00016438,2]
[335641020,1724398235715,-500.0,0.00016438,2]
[335641022,1724398235725,-500.0,0.00016438,2]
[335641025,1724398235734,-500.0,0.00016438,2]
[335641027,1724398235744,-500.0,0.00016438,2]
[335641029,1724398235754,-500.0,0.00016438,2]
[335641031,1724398235765,-522.78,0.00016438,2]
[335641033,1724398235779,-500.0,0.00016438,2]
[335641035,1724398235789,-877.44,0.00016438,2]
[335641037,1724398235799,-513.20231233,0.00016438,2]
[335641039,1724398235809,-500.0,0.00016438,2]
[335641041,1724398235819,-695.74,0.00016438,2]
[335641043,1724398235829,-500.0,0.00016438,2]
[335641045,1724398235839,-500.0,0.00016438,2]
[335641047,1724398235849,-500.0,0.00016438,2]
[335641049,1724398235860,-500.0,0.00016438,2]
[335641051,1724398235869,-500.0,0.00016438,2]
[335641054,1724398235880,-500.0,0.00016438,2]
[335641056,1724398235890,-500.0,0.00016438,2]
[335641058,1724398235901,-500.0,0.00016438,2]
[335641060,1724398235911,-500.0,0.00016438,2]
[335641062,1724398235922,-500.0,0.00016438,2]
[335641064,1724398235932,-500.0,0.00016438,2]
[335641066,1724398235943,-500.0,0.00016438,2]
[335641068,1724398235952,-500.0,0.00016438,2]
[335641071,1724398235971,-228.90391151,0.00016438,2]
[335641073,1724398235981,-500.0,0.00016438,2]
[335641075,1724398235991,-500.0,0.00016438,2]
[335641077,1724398236001,-532.98,0.00016438,2]
[335641079,1724398236010,-500.0,0.00016438,2]
[335641082,1724398236020,-1165.52,0.00016438,2]
[335641084,1724398236030,-1165.52,0.00016438,2]
[335641086,1724398236039,-1165.52,0.00016438,2]
[335641088,1724398236049,-1165.52,0.00016438,2]
[335641090,1724398236062,-1165.52,0.00016438,2]
[335641092,1724398236073,-1165.52,0.00016438,2]
[335641094,1724398236083,-1165.52,0.00016438,2]
[335641096,1724398236093,-1165.52,0.00016438,2]
[335641099,1724398236103,-500.0,0.00016438,2]
[335641101,1724398236113,-1165.52,0.00016438,2]
[335641103,1724398236123,-500.0,0.00016438,2]
[335641105,1724398236133,-1165.52,0.00016438,2]
[335641107,1724398236143,-1165.52,0.00016438,2]
[335641109,1724398236156,-1165.52,0.00016438,2]
[335641111,1724398236167,-500.0,0.00016438,2]
[335641113,1724398236177,-1165.52,0.00016438,2]
[335641116,1724398236187,-1165.52,0.00016438,2]
[335641118,1724398236199,-1165.52,0.00016438,2]
[335641120,1724398236209,-1165.52,0.00016438,2]
[335641122,1724398236219,-1165.52,0.00016438,2]
[335641124,1724398236230,-1165.52,0.00016438,2]
[335641126,1724398236240,-1165.52,0.00016438,2]
[335641128,1724398236250,-938.42,0.00016438,2]
[335641130,1724398236260,-500.0,0.00016438,2]
[335641132,1724398236272,-500.0,0.00016438,2]
[335641134,1724398236281,-500.0,0.00016438,2]
[335641137,1724398236291,-500.0,0.00016438,2]
[335641139,1724398236301,-620.36231929,0.00016438,2]
[335641141,1724398236311,-500.0,0.00016438,2]
[335641143,1724398236321,-2524.74,0.00016438,2]
[335641145,1724398236331,-1179.78,0.00016438,2]
[335641147,1724398236341,-500.0,0.00016438,2]
[335641149,1724398236352,-224.6783368,0.00016438,2]
[335641151,1724398236362,-500.0,0.00016438,2]
[335641154,1724398236373,-1314.97,0.00016438,2]
[335641156,1724398236383,-505.82326499,0.00016438,2]
[335641158,1724398236393,-500.0,0.00016438,2]
[335641160,1724398236402,-2419.23,0.00016438,2]
[335641162,1724398236412,-500.0,0.00016438,2]
[335641164,1724398236422,-500.59192203,0.00016438,2]
[335641166,1724398236433,-511.84679901,0.00016438,2]
[335641168,1724398236443,-500.0,0.00016438,2]
[335641170,1724398236453,-500.0,0.00016438,2]
[335641172,1724398236463,-500.0,0.00016438,2]
[335641174,1724398236473,-500.0,0.00016438,2]
[335641176,1724398236483,-838.69,0.00016438,2]
[335641178,1724398236493,-500.0,0.00016438,2]
[335641180,1724398236502,-805.79,0.00016438,2]
[335641183,1724398236517,-501.46257399,0.00016438,2]
[335641185,1724398236527,-500.0,0.00016438,2]
[335641187,1724398236538,-500.0,0.00016438,2]
[335641189,1724398236548,-1547.97,0.00016438,2]
[335641191,1724398236559,-744.45,0.00016438,2]
[335641193,1724398236569,-500.0,0.00016438,2]
[335641196,1724398236580,-500.0,0.00016438,2]
[335641198,1724398236590,-500.0,0.00016438,2]
[335641200,1724398236600,-1075.24,0.00016438,2]
[335641202,1724398236611,-500.0,0.00016438,2]
[335641204,1724398236621,-756.53,0.00016438,2]
[335641206,1724398236631,-1385.68,0.00016438,2]
[335641208,1724398236641,-500.0,0.00016438,2]
[335641210,1724398236651,-500.0,0.00016438,2]
[335641212,1724398236661,-500.0,0.00016438,2]
[335641214,1724398236672,-855.15,0.00016438,2]
[335641217,1724398236683,-500.0,0.00016438,2]
[335641219,1724398236693,-500.0,0.00016438,2]
[335641221,1724398236703,-914.71,0.00016438,2]
[335641223,1724398236713,-500.0,0.00016438,2]
[335641225,1724398236723,-558.55,0.00016438,2]
[335641227,1724398236734,-598.70782263,0.00016438,2]
[335641229,1724398236744,-619.34,0.00016438,2]
[335641231,1724398236755,-500.0,0.00016438,2]
[335641233,1724398236766,-500.0,0.00016438,2]
[335641235,1724398236776,-1514.06,0.00016438,2]
[335641237,1724398236786,-500.0,0.00016438,2]
[335641239,1724398236796,-500.0,0.00016438,2]
[335641242,1724398236806,-500.0,0.00016438,2]
[335641244,1724398236816,-500.0,0.00016438,2]
[335641246,1724398236825,-500.0,0.00016438,2]
[335641248,1724398236835,-500.0,0.00016438,2]
[335641250,1724398236846,-507.96515692,0.00016438,2]
[335641252,1724398236855,-513.66,0.00016438,2]
[335641254,1724398236865,-500.0,0.00016438,2]
[335641256,1724398236875,-500.0,0.00016438,2]
[335641258,1724398236884,-500.0,0.00016438,2]
[335641260,1724398236894,-536.15326717,0.00016438,2]
[335641262,1724398236904,-1184.21,0.00016438,2]
[335641264,1724398236914,-500.0,0.00016438,2]
[335641266,1724398236924,-878.73,0.00016438,2]
[335641268,1724398236934,-500.0,0.00016438,2]
[335641271,1724398236947,-500.0,0.00016438,2]
[335641273,1724398236957,-500.0,0.00016438,2]
[335641275,1724398236967,-500.0,0.00016438,2]
[335641277,1724398236977,-500.0,0.00016438,2]
[335641279,1724398236987,-500.0,0.00016438,2]
[335641281,1724398236996,-500.0,0.00016438,2]
[335641283,1724398237006,-515.42,0.00016438,2]
[335641285,1724398237016,-500.0,0.00016438,2]
[335641287,1724398237026,-500.0,0.00016438,2]
[335641289,1724398237035,-500.0,0.00016438,2]
[335641291,1724398237046,-500.0,0.00016438,2]
[335641293,1724398237055,-500.0,0.00016438,2]
[335641295,1724398237065,-500.0,0.00016438,2]
[335641297,1724398237075,-500.0,0.00016438,2]
[335641299,1724398237085,-500.0,0.00016438,2]
[335641301,1724398237094,-500.0,0.00016438,2]
[335641303,1724398237104,-500.0,0.00016438,2]
[335641305,1724398237114,-500.0,0.00016438,2]
[335641307,1724398237124,-500.0,0.00016438,2]
[335641309,1724398237134,-500.0,0.00016438,2]
[335641311,1724398237144,-202.05,0.00016438,2]
[335641314,1724398237158,-500.0,0.00016438,2]
[335641316,1724398237168,-500.0,0.00016438,2]
[335641318,1724398237178,-711.62,0.00016438,2]
[335641320,1724398237187,-500.0,0.00016438,2]
[335641322,1724398237198,-2135.65,0.00016438,2]
[335641324,1724398237208,-500.0,0.00016438,2]
[335641326,1724398237218,-1246.02,0.00016438,2]
[335641328,1724398237229,-500.0,0.00016438,2]
[335641330,1724398237238,-500.0,0.00016438,2]
[335641332,1724398237249,-540.66585688,0.00016438,2]
[335641334,1724398237259,-500.0,0.00016438,2]
[335641336,1724398237270,-500.0,0.00016438,2]
[335641338,1724398237279,-500.0,0.00016438,2]
[335641340,1724398237289,-500.0,0.00016438,2]
[335641342,1724398237298,-1687.47,0.00016438,2]
[335641344,1724398237309,-500.54070432,0.00016438,2]
[335641346,1724398237319,-500.0,0.00016438,2]
[335641348,1724398237328,-735.36,0.00016438,2]
[335641350,1724398237338,-500.0,0.00016438,2]
[335641353,1724398237349,-505.98043148,0.00016438,2]
[335641355,1724398237360,-807.02,0.00016438,2]
[335641357,1724398237370,-613.43,0.00016438,2]
[335641359,1724398237379,-500.0,0.00016438,2]
[335641361,1724398237389,-500.0,0.00016438,2]
[335641363,1724398237398,-500.0,0.00016438,2]
[335641366,1724398237418,-500.0,0.00016438,2]
[335641368,1724398237429,-500.0,0.00016438,2]
[335641370,1724398237440,-500.0,0.00016438,2]
[335641372,1724398237451,-500.0,0.00016438,2]
[335641375,1724398237462,-500.0,0.00016438,2]
[335641377,1724398237472,-535.16636302,0.00016438,2]
[335641379,1724398237483,-500.0,0.00016438,2]
[335641381,1724398237493,-500.0,0.00016438,2]
[335641383,1724398237503,-500.0,0.00016438,2]
[335641385,1724398237514,-500.0,0.00016438,2]
[335641387,1724398237525,-500.0,0.00016438,2]
[335641390,1724398237535,-500.0,0.00016438,2]
[335641392,1724398237546,-500.0,0.00016438,2]
[335641394,1724398237556,-500.0,0.00016438,2]
[335641396,1724398237567,-500.0,0.00016438,2]
[335641398,1724398237577,-500.0,0.00016438,2]
[335641400,1724398237588,-500.0,0.00016438,2]
[335641402,1724398237599,-500.0,0.00016438,2]
[335641404,1724398237609,-1019.38,0.00016438,2]
[335641406,1724398237620,-500.0,0.00016438,2]
[335641408,1724398237630,-556.9,0.00016438,2]
[335641410,1724398237640,-500.0,0.00016438,2]
[335641413,1724398237651,-500.0,0.00016438,2]
[335641415,1724398237661,-500.57,0.00016438,2]
[335641417,1724398237671,-500.0,0.00016438,2]
[335641418,1724398237683,-500.0,0.00016438,2]
[335641419,1724398237694,-500.0,0.00016438,2]
[335641420,1724398237704,-500.0,0.00016438,2]
[335641421,1724398237715,-3941.01,0.00016438,2]
[335641422,1724398237725,-500.0,0.00016438,2]
[335641423,1724398237735,-500.0,0.00016438,2]
[335641424,1724398237745,-500.0,0.00016438,2]
[335641425,1724398237755,-303.83652486,0.00016438,2]
[335641426,1724398237766,-500.0,0.00016438,2]
[335641427,1724398237777,-500.0,0.00016438,2]
[335641428,1724398237787,-829.46,0.00016438,2]
[335641429,1724398237798,-500.0,0.00016438,2]
[335641431,1724398237808,-1186.27,0.00016438,2]
[335641432,1724398237817,-500.0,0.00016438,2]
[335641433,1724398237827,-500.0,0.00016438,2]
[335641434,1724398237837,-500.0,0.00016438,2]
[335641436,1724398237847,-500.0,0.00016438,2]
[335641438,1724398237858,-550.83,0.00016438,2]
[335641440,1724398237869,-500.0,0.00016438,2]
[335641443,1724398237879,-500.0,0.00016438,2]
[335641446,1724398237891,-518.36,0.00016438,2]
[335641449,1724398237900,-500.0,0.00016438,2]
[335641453,1724398237911,-768.86,0.00016438,2]
[335641456,1724398237921,-1390.21,0.00016438,2]
[335641458,1724398237930,-500.0,0.00016438,2]
[335641461,1724398237941,-1063.26,0.00016438,2]
[335641480,1724398238055,-439.72958031,0.00016438,2]
[335641482,1724398238065,-500.0,0.00016438,2]
[335641484,1724398238074,-518.27408253,0.00016438,2]
[335641486,1724398238085,-500.0,0.00016438,2]
[335641488,1724398238096,-500.0,0.00016438,2]
[335641490,1724398238106,-751.58,0.00016438,2]
[335641492,1724398238118,-1507.16,0.00016438,2]
[335641494,1724398238128,-695.85,0.00016438,2]
[335641496,1724398238139,-500.0,0.00016438,2]
[335641498,1724398238154,-500.0,0.00016438,2]
[335641501,1724398238165,-531.56,0.00016438,2]
[335641503,1724398238175,-500.0,0.00016438,2]
[335641505,1724398238185,-528.63971157,0.00016438,2]
[335641507,1724398238196,-500.0,0.00016438,2]
[335641509,1724398238206,-934.73,0.00016438,2]
[335641511,1724398238216,-500.82306051,0.00016438,2]
[335641513,1724398238226,-500.0,0.00016438,2]
[335641515,1724398238236,-1196.57,0.00016438,2]
[335641517,1724398238246,-322.0121404,0.00016438,2]
[335641519,1724398238256,-500.0,0.00016438,2]
[335641521,1724398238266,-500.0,0.00016438,2]
[335641523,1724398238276,-538.58740461,0.00016438,2]
[335641525,1724398238286,-500.0,0.00016438,2]
[335641527,1724398238295,-500.0,0.00016438,2]
[335641529,1724398238305,-500.0,0.00016438,2]
[335641531,1724398238315,-500.0,0.00016438,2]
[335641533,1724398238324,-2371.0,0.00016438,2]
[335641535,1724398238334,-760.53,0.00016438,2]
[335641537,1724398238343,-522.36578076,0.00016438,2]
[335641539,1724398238355,-1042.45,0.00016438,2]
[335641541,1724398238365,-1704.03,0.00016438,2]
[335641543,1724398238375,-500.0,0.00016438,2]
[335641546,1724398238385,-500.0,0.00016438,2]
[335641548,1724398238396,-500.0,0.00016438,2]
[335641550,1724398238407,-491.3994155,0.00016438,2]
[335641552,1724398238417,-500.0,0.00016438,2]
[335641554,1724398238426,-500.0,0.00016438,2]
[335641556,1724398238436,-500.0,0.00016438,2]
[335641558,1724398238445,-500.0,0.00016438,2]
[335641560,1724398238455,-500.0,0.00016438,2]
[335641562,1724398238465,-1131.39,0.00016438,2]
[335641564,1724398238474,-1160.44,0.00016438,2]
[335641566,1724398238483,-500.0,0.00016438,2]
[335641568,1724398238492,-500.0,0.00016438,2]
[335641570,1724398238503,-500.0,0.00016438,2]
[335641572,1724398238512,-500.0,0.00016438,2]
[335641574,1724398238522,-500.0,0.00016438,2]
[335641576,1724398238532,-500.0,0.00016438,2]
[335641578,1724398238541,-395.10561693,0.00016438,2]
[335641580,1724398238551,-500.0,0.00016438,2]
[335641582,1724398238560,-500.0,0.00016438,2]
[335641584,1724398238569,-500.0,0.00016438,2]
[335641586,1724398238578,-877.22,0.00016438,2]
[335641588,1724398238588,-500.0,0.00016438,2]
[335641590,1724398238599,-1974.73,0.00016438,2]
[335641592,1724398238608,-571.88358719,0.00016438,2]
[335641594,1724398238618,-500.0,0.00016438,2]
[335641596,1724398238628,-500.0,0.00016438,2]
[335641598,1724398238638,-1373.05,0.00016438,2]
[335641600,1724398238648,-500.0,0.00016438,2]
[335641602,1724398238658,-500.80633526,0.00016438,2]
[335641604,1724398238669,-500.0,0.00016438,2]
[335641606,1724398238679,-500.0,0.00016438,2]
[335641608,1724398238689,-500.0,0.00016438,2]
[335641610,1724398238700,-1579.0,0.00016438,2]
[335641613,1724398238710,-960.02,0.00016438,2]
[335641615,1724398238720,-500.0,0.00016438,2]
[335641617,1724398238730,-500.0,0.00016438,2]
[335641619,1724398238739,-500.0,0.00016438,2]
[335641620,1724398238748,-500.0,0.00016438,2]
[335641622,1724398238758,-500.0,0.00016438,2]
[335641624,1724398238768,-500.0,0.00016438,2]
[335641626,1724398238783,-607.01,0.00016438,2]
[335641628,1724398238794,-500.0,0.00016438,2]
[335641631,1724398238804,-1164.01,0.00016438,2]
[335641633,1724398238814,-500.0,0.00016438,2]
[335641634,1724398238823,-500.0,0.00016438,2]
[335641636,1724398238832,-810.46,0.00016438,2]
[335641639,1724398238843,-500.0,0.00016438,2]
[335641641,1724398238853,-818.13,0.00016438,2]
[335641643,1724398238863,-500.0,0.00016438,2]
[335641645,1724398238872,-500.0,0.00016438,2]
[335641647,1724398238882,-896.12,0.00016438,2]
[335641649,1724398238892,-500.0,0.00016438,2]
[335641651,1724398238903,-500.0,0.00016438,2]
[335641653,1724398238913,-872.75,0.00016438,2]
[335641655,1724398238922,-590.26489435,0.00016438,2]
[335641657,1724398238932,-500.0,0.00016438,2]
[335641659,1724398238942,-554.93454716,0.00016438,2]
[335641661,1724398238951,-695.83,0.00016438,2]
[335641663,1724398238960,-500.0,0.00016438,2]
[335641665,1724398238970,-500.0,0.00016438,2]
[335641667,1724398238980,-871.08,0.00016438,2]
[335641669,1724398238989,-837.67,0.00016438,2]
[335641671,1724398238999,-500.0,0.00016438,2]
[335641673,1724398239008,-540.64814878,0.00016438,2]
[335641675,1724398239018,-500.0,0.00016438,2]
[335641677,1724398239027,-500.0,0.00016438,2]
[335641679,1724398239036,-500.0,0.00016438,2]
[335641681,1724398239045,-500.0,0.00016438,2]
[335641683,1724398239055,-500.0,0.00016438,2]
[335641685,1724398239064,-500.0,0.00016438,2]
[335641687,1724398239073,-500.0,0.00016438,2]
[335641689,1724398239083,-1450.65,0.00016438,2]
[335641692,1724398239092,-501.1954883,0.00016438,2]
[335641694,1724398239101,-825.29,0.00016438,2]
[335641696,1724398239111,-887.32,0.00016438,2]
[335641698,1724398239120,-500.0,0.00016438,2]
[335641700,1724398239129,-500.0,0.00016438,2]
[335641702,1724398239138,-1054.55,0.00016438,2]
[335641703,1724398239149,-803.97,0.00016438,2]
[335641705,1724398239159,-2909.38,0.00016438,2]
[335641707,1724398239169,-908.36,0.00016438,2]
[335641710,1724398239179,-722.57984328,0.00016438,2]
[335641942,1724398241350,-500.0,0.00016437,2]
[335641944,1724398241361,-389.98628354,0.00016437,2]
[335641946,1724398241371,-500.0,0.00016437,2]
[335641948,1724398241382,-500.0,0.00016437,2]
[335641950,1724398241392,-510.15015672,0.00016438,2]
[335641952,1724398241402,-784.51,0.00016438,2]
[335641954,1724398241412,-500.0,0.00016438,2]
[335641956,1724398241422,-500.0,0.00016438,2]
[335641958,1724398241431,-500.0,0.00016438,2]
[335641961,1724398241441,-2944.94,0.00016438,2]
[335641962,1724398241451,-500.0,0.00016438,2]
[335641965,1724398241461,-500.0,0.00016438,2]
[335641967,1724398241472,-1221.69,0.00016438,2]
[335641969,1724398241482,-723.04,0.00016438,2]
[335641971,1724398241492,-500.0,0.00016438,2]
[335641973,1724398241502,-500.0,0.00016438,2]
[335641975,1724398241512,-500.0,0.00016438,2]
[335641977,1724398241524,-771.03,0.00016438,2]
[335641979,1724398241534,-500.0,0.00016438,2]
[335641981,1724398241544,-500.0,0.00016438,2]
[335641983,1724398241555,-1070.93,0.00016438,2]
[335641985,1724398241565,-682.79,0.00016438,2]
[335641987,1724398241575,-540.64,0.00016438,2]
[335641989,1724398241585,-500.0,0.00016438,2]
[335641991,1724398241595,-500.0,0.00016438,2]
[335641993,1724398241605,-500.0,0.00016438,2]
[335641995,1724398241615,-500.0,0.00016438,2]
[335641998,1724398241624,-1487.4,0.00016438,2]
[335642000,1724398241635,-811.12,0.00016438,2]
[335642002,1724398241645,-4026.58,0.00016438,2]
[335642004,1724398241655,-1043.33,0.00016438,2]
[335642006,1724398241665,-650.87,0.00016438,2]
[335642008,1724398241675,-500.0,0.00016438,2]
[335642010,1724398241684,-500.0,0.00016438,2]
[335642012,1724398241694,-500.0,0.00016438,2]
[335642014,1724398241704,-500.0,0.00016438,2]
[335642016,1724398241714,-500.0,0.00016438,2]
[335642018,1724398241724,-500.0,0.00016438,2]
[335642020,1724398241735,-500.0,0.00016438,2]
[335642022,1724398241745,-500.0,0.00016438,2]
[335642024,1724398241754,-500.0,0.00016438,2]
[335642026,1724398241766,-500.0,0.00016438,2]
[335642028,1724398241777,-521.07,0.00016438,2]
[335642030,1724398241786,-644.18276226,0.00016438,2]
[335642031,1724398241796,-402.65011386,0.00016438,2]
[335642034,1724398241806,-500.0,0.00016438,2]
[335642036,1724398241816,-500.0,0.00016438,2]
[335642038,1724398241829,-920.93,0.00016438,2]
[335642040,1724398241839,-721.57,0.00016438,2]
[335642042,1724398241849,-500.0,0.00016438,2]
[335642044,1724398241858,-500.0,0.00016438,2]
[335642046,1724398241868,-645.83,0.00016438,2]
[335642048,1724398241879,-500.0,0.00016438,2]
[335642050,1724398241889,-719.91,0.00016438,2]
[335642052,1724398241898,-650.29,0.00016438,2]
[335642054,1724398241908,-500.0,0.00016438,2]
[335642056,1724398241918,-1673.02,0.00016438,2]
[335642058,1724398241928,-500.0,0.00016438,2]
[335642060,1724398241939,-1908.17,0.00016438,2]
[335642062,1724398241948,-531.53,0.00016438,2]
[335642064,1724398241958,-594.1,0.00016438,2]
[335642066,1724398241969,-594.1,0.00016438,2]
[335642068,1724398241980,-594.1,0.00016438,2]
[335642070,1724398241991,-594.1,0.00016438,2]
[335642072,1724398242001,-594.1,0.00016438,2]
[335642074,1724398242011,-500.0,0.00016438,2]
[335642076,1724398242027,-594.1,0.00016438,2]
[335642079,1724398242039,-594.1,0.00016438,2]
[335642081,1724398242050,-500.0,0.00016438,2]
[335642083,1724398242060,-594.1,0.00016438,2]
[335642085,1724398242073,-594.1,0.00016438,2]
[335642087,1724398242084,-594.1,0.00016438,2]
[335642089,1724398242094,-594.1,0.00016438,2]
[335642092,1724398242106,-500.0,0.00016438,2]
[335642094,1724398242117,-938.17,0.00016438,2]
[335642096,1724398242129,-594.1,0.00016438,2]
[335642098,1724398242139,-594.1,0.00016438,2]
[335642100,1724398242154,-594.1,0.00016438,2]
[335642103,1724398242166,-594.1,0.00016438,2]
[335642105,1724398242179,-594.1,0.00016438,2]
[335642107,1724398242191,-594.1,0.00016438,2]
[335642109,1724398242204,-594.1,0.00016438,2]
[335642111,1724398242215,-594.1,0.00016438,2]
[335642114,1724398242225,-717.66,0.00016438,2]
[335642116,1724398242236,-694.74,0.00016438,2]
[335642118,1724398242247,-1069.37,0.00016438,2]
[335642120,1724398242258,-2360.17,0.00016438,2]
[335642122,1724398242270,-500.0,0.00016438,2]
[335642124,1724398242281,-769.7,0.00016438,2]
[335642126,1724398242291,-512.68,0.00016438,2]
[335642128,1724398242301,-500.0,0.00016438,2]
[335642130,1724398242313,-599.6,0.00016438,2]
[335642132,1724398242323,-1263.49,0.00016438,2]
[335642135,1724398242334,-500.0,0.00016438,2]
[335642137,1724398242345,-1084.53,0.00016438,2]
[335642139,1724398242356,-981.82,0.00016438,2]
[335642141,1724398242367,-659.2,0.00016438,2]
[335642143,1724398242379,-500.0,0.00016438,2]
[335642145,1724398242389,-840.72,0.00016438,2]
[335642147,1724398242400,-500.0,0.00016438,2]
[335642149,1724398242410,-695.92,0.00016438,2]
[335642174,1724398242648,-1034.21,0.00016438,2]
[335642176,1724398242659,-500.90253299,0.00016438,2]
[335642178,1724398242670,-500.0,0.00016438,2]
[335642180,1724398242681,-500.0,0.00016438,2]
[335642182,1724398242694,-749.07,0.00016438,2]
[335642185,1724398242704,-500.0,0.00016438,2]
[335642186,1724398242713,-500.0,0.00016438,2]
[335642188,1724398242723,-748.28,0.00016438,2]
[335642191,1724398242733,-1348.81,0.00016438,2]
[335642193,1724398242742,-500.0,0.00016438,2]
[335642195,1724398242752,-6144.54,0.00016438,2]
[335642196,1724398242761,-617.4,0.00016438,2]
[335642199,1724398242773,-1432.16,0.00016438,2]
[335642201,1724398242783,-838.94,0.00016438,2]
[335642203,1724398242794,-500.0,0.00016438,2]
[335642205,1724398242804,-500.0,0.00016438,2]
[335642207,1724398242813,-566.08186482,0.00016438,2]
[335642209,1724398242824,-500.0,0.00016438,2]
[335642211,1724398242835,-500.0,0.00016438,2]
[335642213,1724398242846,-1850.66,0.00016438,2]
[335642215,1724398242857,-441.71529731,0.00016438,2]
[335642217,1724398242867,-785.02,0.00016438,2]
[335642220,1724398242879,-1000.0,0.00016438,2]
[335642222,1724398242891,-2149.7,0.00016438,2]
[335642224,1724398242902,-1438.75,0.00016438,2]
[335642226,1724398242913,-1716.86,0.00016438,2]
[335642228,1724398242924,-500.0,0.00016438,2]
[335642230,1724398242934,-500.0,0.00016438,2]
[335642233,1724398242946,-4812.05,0.00016438,2]
[335642236,1724398242955,-805.33,0.00016438,2]
[335642239,1724398242965,-500.0,0.00016438,2]
[335642241,1724398242974,-500.0,0.00016438,2]
[335642244,1724398242985,-500.0,0.00016438,2]
[335642247,1724398242994,-1512.69,0.00016438,2]
[335642249,1724398243004,-598.77,0.00016438,2]
[335642253,1724398243014,-468.18750326,0.00016438,2]
[335642256,1724398243025,-500.0,0.00016438,2]
[335642257,1724398243034,-500.0,0.00016438,2]
[335642260,1724398243044,-1036.34,0.00016438,2]
[335642263,1724398243053,-3928.47,0.00016438,2]
[335642267,1724398243063,-500.0,0.00016438,2]
[335642269,1724398243073,-631.45,0.00016438,2]